Cogmind - Beta 11 X8 @@@ ROGUE MODE // 2021.10.26 @ 15:42:03 Player: Luna Result: Destroyed by P-70 Sage with High-powered Shock Rifle Performance ------------- Evolutions (6) 3000 Regions Visited (18) 3600 Robots Destroyed (398) 1990 Value Destroyed (15341) 15341 Prototype IDs (36) 720 Alien Tech Used (0) 0 Bonus (6535) 6535 TOTAL SCORE: 31186 Bonus ------- High Alert Combat Kills 2900 Follower Combat Kills 661 Entered Garrisons 1000 Used RIF Installer 2500 Aligned with FarCom 300 Friendly Fire -826 Cogmind --------- Core Integrity 0/1150 Matter 300/300 Energy 49/100 System Corruption 27% Temperature Cool (0) Movement Rolling (215) Ox9 Location -4/Factory Parts ------- > --- POWER (1) -------- (None) > --- PROPULSION (5) --- Wheel > --- UTILITY (9) ------ Advanced Heat Sink Huge Storage Unit Advanced Melee Analysis Suite Microactuators Field Recycling Unit > --- WEAPON (4) ------- Power Sword > --- INVENTORY (25) --- Improved Ion Engine Light Nuclear Core Light Nuclear Core Micro Fission Core Micro Fission Core Micro Fission Core Micro Fission Core Micro Fission Core Micro Fission Core Light Antimatter Reactor Wheel Advanced Heat Sink Heavy Neutron Cannon Improved Remote Datajack Improved Remote Datajack Peak State ------------ > --- POWER ------------ Light Antimatter Reactor > --- PROPULSION ------- Advanced Medium Treads Advanced Medium Treads Advanced Medium Treads Wheel Compact Wheel > --- UTILITY ---------- Advanced Heat Sink Advanced Heat Sink Huge Storage Unit Structural Scanner Advanced Signal Interpreter Layered Heavy Armor Plating Layered Heavy Armor Plating > --- WEAPON ----------- Heavy Neutron Cannon KE Penetrator Heavy Flak Cannon Plasma Sword > --- INVENTORY -------- Micro Fission Core Micro Fission Core Micro Fission Core Micro Fission Core Micro Fission Core Micro Fission Core Improved Heat Sink Improved Heat Sink Medium Storage Unit High-capacity Matter Pod Field Recycling Unit High-powered Shock Rifle Electrolaser Wave Gun Wave Gun Phase Cannon Phase Cannon Matter Neutralizer Coil Gun Hardcell Cannon Scatter Rocket Array Improved Remote Datajack Improved Remote Datajack [Rating: 107] Favorites ----------- Power Reinforced Deuterium Engine Engine Reinforced Deuterium Engine Power Core Light Nuclear Core Reactor Light Antimatter Reactor Propulsion Compact Wheel Treads Light Treads Leg Flexi-carbon Leg Wheel Compact Wheel Hover Unit Antigrav System Utility Huge Storage Unit Device Advanced Heat Sink Storage Huge Storage Unit Processor Advanced Signal Interpreter Hackware Relay Coupler [Hunter] Protection Layered Light Armor Plating Weapon KE Penetrator Energy Gun Heavy Laser Energy Cannon Advanced Plasma Cannon Ballistic Gun KE Penetrator Ballistic Cannon Magnetic Acceleration Cannon Launcher Improved Grenade Launcher Special Weapon Improved Remote Datajack Impact Weapon Powered Hammer Slashing Weapon Great Axe Special Melee Weapon Datajack Build | -11 -10 -10 -9 -9 -9 -8 -8 -8 -7 -7 -7 -7 -6 -6 -5 -5 -5 -4 ------- Run | Scr Mat Min Mat Min Exi Min Mat Gar Fac Gar Fac Gar Fac Gar Fac Gar Fac Fac Slots Evolved 12 | . . . 2 . . . 2 . 2 . . . 2 . 2 . . 2 Power . | . . . . . . . . . . . . . . . . . . . Propulsion 3 | . . . . . . . 1 . . . . . 1 . . . . 1 Utility 7 | . . . 2 . . . . . 2 . . . 1 . 1 . . 1 Weapon 2 | . . . . . . . 1 . . . . . . . 1 . . . Parts Attached 696 | 2 17 6 11 34 4 2 46 34 51 8 19 23 39 37 48 48 135 132 Power 39 | . 2 . 2 1 . . 3 3 3 . . 2 3 3 4 1 6 6 Engine 20 | . . . 2 . . . 3 3 3 . . 1 . 2 1 1 4 . Core 15 | . 2 . . 1 . . . . . . . 1 2 1 3 . 2 3 Reactor 4 | . . . . . . . . . . . . . 1 . . . . 3 Propulsion 156 | 2 8 2 . 3 . . 10 9 8 . . 6 6 9 9 6 29 49 Treads 47 | . 2 . . . . . 2 7 1 . . 3 2 8 2 6 7 7 Leg 16 | . . . . . . . 1 . . . . . . 1 . . 1 13 Wheel 92 | 2 6 2 . 3 . . 7 2 7 . . 3 4 . 7 . 20 29 Hover 1 | . . . . . . . . . . . . . . . . . 1 . Flight . | . . . . . . . . . . . . . . . . . . . Utility 235 | . 4 . 4 19 4 2 12 11 18 3 8 5 15 17 17 19 44 33 Device 103 | . . . 1 9 1 1 6 4 11 1 3 1 9 8 7 6 14 21 Storage 13 | . 2 . . . 2 . . . . . . . . . 2 . 2 5 Processor 5 | . 1 . . 1 . . . . . . . . . 1 . . . 2 Hackware 20 | . . . . . . . . . 1 . 2 1 2 . 4 5 5 . Protection 94 | . 1 . 3 9 1 1 6 7 6 2 3 3 4 8 4 8 23 5 Artifact . | . . . . . . . . . . . . . . . . . . . Weapon 266 | . 3 4 5 11 . . 21 11 22 5 11 10 15 8 18 22 56 44 Energy Gun 58 | . 2 . 3 4 . . 9 . 9 2 4 2 1 2 1 2 7 10 Energy Cannon 24 | . . . . . . . . . 1 . . . 2 3 3 1 7 7 Ballistic Gun 56 | . 1 2 . 3 . . 7 4 2 1 . . 1 . 5 11 14 5 Ballistic Cannon 20 | . . . . . . . . 2 3 . 1 2 3 . . 1 3 5 Launcher 25 | . . 2 1 3 . . . 4 1 1 . 3 1 1 . 2 5 1 Special Weapon 25 | . . . . . . . . . . . 2 2 2 2 4 3 8 2 Impact Weapon 20 | . . . 1 1 . . 5 1 6 1 3 . 2 . . . . . Slashing Weapon 36 | . . . . . . . . . . . . . 3 . 5 2 12 14 Piercing Weapon . | . . . . . . . . . . . . . . . . . . . Special Melee Weapon 2 | . . . . . . . . . . . 1 1 . . . . . . Unidentified Prototypes 13 | . . . . . . . 3 . 3 . . . 3 . . . 1 3 Parts Lost 154 | . 6 . . 8 . . 7 5 1 . . 7 9 6 7 3 38 57 Power 14 | . 1 . . 1 . . 1 . 1 . . 2 1 1 . . 4 2 Propulsion 51 | . 2 . . 1 . . 4 3 . . . 2 2 1 1 1 11 23 Utility 57 | . . . . 4 . . 1 2 . . . 2 5 4 6 2 14 17 Weapon 32 | . 3 . . 2 . . 1 . . . . 1 1 . . . 9 15 Highest Loss Streak 16 | . 5 . . 5 . . 3 2 1 . . 6 4 3 3 1 12 16 Average Slot Usage (%) 97 | . 95 100 100 98 99 100 99 99 100 100 99 98 98 99 99 99 93 84 Engine 4 | . 4 . 8 3 . . 5 9 7 7 7 5 3 4 3 4 4 . Core 2 | . 9 14 2 7 11 11 3 . . . . . 2 1 1 . . 3 Treads 6 | . 4 . . . . . 6 23 3 . . 13 . 10 5 10 4 6 Wheel 16 | . 23 28 22 21 22 22 19 3 18 23 23 8 24 13 16 11 13 15 Device 11 | . . . 11 11 10 11 11 7 15 9 14 6 9 14 16 10 11 13 Storage 7 | . 14 14 11 11 11 11 9 9 7 7 7 7 6 6 6 5 5 7 Processor 1 | . 7 . . 5 11 11 . . . . . . . 2 . . . 4 Hackware 5 | . . . . . . . . . 3 . 4 7 15 9 5 10 13 1 Protection 14 | . 3 14 22 15 10 11 14 19 18 27 17 22 14 12 15 17 12 7 Energy Gun 4 | . 5 11 15 10 . . 9 7 7 2 5 6 . 5 2 . 2 2 Energy Cannon 2 | . . . . . . . . . . 2 . . 6 5 7 3 1 1 Ballistic Gun 6 | . 22 13 3 10 11 11 13 14 2 1 5 . . . 1 6 6 6 Ballistic Cannon 3 | . . . . . . . . 1 6 7 1 7 2 6 5 5 3 2 Impact Weapon 1 | . . . . 1 11 11 3 1 5 3 6 . 3 . . . . . Slashing Weapon 1 | . . . . . . . . . . . . . 1 . 2 3 3 3 Naked Turns . | . . . . . . . . . . . . . . . . . . . Heaviest Build 208 | 13 91 92 101 101 208 92 106 114 120 128 124 124 123 119 131 146 156 169 Greatest Support 116 | 32 40 20 20 20 20 20 30 60 68 36 36 68 50 38 64 64 116 90 Greatest Overweight (x) 37 | . 5 4 5 9 10 4 5 4 7 3 3 4 4 5 5 4 37 9 Average Overweight (x) 3 | . 1 4 4 4 4 4 3 1 2 3 3 2 2 4 2 3 3 2 Largest Inventory Capacity 35 | 8 25 25 25 25 35 25 25 25 25 25 25 25 25 25 25 25 25 25 Average Capacity 24 | 8 22 25 25 25 25 25 25 25 25 25 25 25 25 25 25 25 25 25 Most Carried 26 | 6 25 25 25 25 26 25 25 25 25 25 25 25 25 25 25 25 25 25 Average Carried 23 | 5 20 24 24 24 25 24 24 24 24 24 24 24 24 24 24 18 22 22 Final Capacity 25 | 8 25 25 25 25 25 25 25 25 25 25 25 25 25 25 25 25 25 25 Final Carried 25 | 4 25 25 25 25 25 25 25 25 25 25 25 25 25 25 24 25 25 25 Class Distribution -------------------- 41% | Scavenger-Mutant 20% | Mutant 12% | Scavenger-Tank 9% | Bothacker-Mutant 6% | Bothacker-Tank 5% | Scavenger-Skirmisher Dominant Class ---------------- Mutant | -10/Materials Scavenger-Mutant | -10/Mines Scavenger-Mutant | -9/Materials Scavenger-Mutant | -9/Mines Scavenger-Mutant | -9/Exiles Scavenger-Mutant | -8/Mines Scavenger-Mutant | -8/Materials Scavenger-Tank | -8/Garrison Scavenger-Mutant | -7/Factory Mutant | -7/Garrison Mutant | -7/Factory Mutant | -7/Garrison Mutant | -6/Factory Scavenger-Skirmisher | -6/Garrison Bothacker-Mutant | -5/Factory Scavenger-Mutant | -5/Garrison Bothacker-Mutant | -5/Factory Scavenger-Mutant | -4/Factory Resources | -11 -10 -10 -9 -9 -9 -8 -8 -8 -7 -7 -7 -7 -6 -6 -5 -5 -5 -4 ----------- Run | Scr Mat Min Mat Min Exi Min Mat Gar Fac Gar Fac Gar Fac Gar Fac Gar Fac Fac Matter Collected 14907 | 207 569 97 143 272 . 157 871 576 807 282 148 540 831 913 825 931 3573 3165 Remotely 543 | . . . . . . . . . . . . . . 323 . . 220 . Salvage Created 15246 | . 627 71 277 164 . 144 1448 461 1027 412 101 341 921 675 1001 384 3482 3710 Parts 717 | . 50 7 27 14 . 1 87 31 48 16 8 20 16 36 39 26 144 147 Haulers Intercepted 6 | . 2 . . . . . 2 . 1 . . . . . . . . 1 Recyclers Shooed 26 | . 2 . 1 1 . . 1 . 1 . . . 1 . 4 . 9 6 Parts Field Recycled . | . . . . . . . . . . . . . . . . . . . Retrieved Matter . | . . . . . . . . . . . . . . . . . . . Parts Self-Destructed . | . . . . . . . . . . . . . . . . . . . Prevented . | . . . . . . . . . . . . . . . . . . . Kills | -11 -10 -10 -9 -9 -9 -8 -8 -8 -7 -7 -7 -7 -6 -6 -5 -5 -5 -4 ------- Run | Scr Mat Min Mat Min Exi Min Mat Gar Fac Gar Fac Gar Fac Gar Fac Gar Fac Fac Combat Hostiles Destroyed 275 | . 13 3 8 13 . . 19 15 14 9 2 19 3 23 9 16 50 59 Melee 11 | . . . . . . . . . . . . . . . . . . 11 Guns 118 | . 13 1 5 9 . . 19 9 6 1 2 5 1 5 . 4 21 17 Cannons 61 | . . . . . . . . . 4 2 . 1 2 9 8 3 15 17 AOE 77 | . . 2 3 4 . . . 6 3 6 . 13 . 8 . 9 13 10 Classes Destroyed 21 | . 5 1 2 2 . 1 1 . 3 . . 1 1 . . 3 . 1 Worker 34 | . 2 1 . . . . 5 . 5 . . . 2 . 2 . 8 9 Builder 29 | . . . 2 . . . 1 . 7 . . . 1 . . . 8 10 Tunneler 8 | . . 1 . . . 3 1 . 1 . . . 1 . . . 1 . Hauler 6 | . 2 . . . . . 2 . 1 . . . . . . . . 1 Recycler 30 | . . . . . . 1 2 . 3 . . . 5 . 4 . 8 7 Mechanic 1 | . . . . . . . . . 1 . . . . . . . . . Operator 2 | . . . . . . . . . 1 . . . . . . . 1 . Watcher 12 | . 2 . 1 . . . 5 . 1 . . . . . 1 . 2 . Swarmer 82 | . 3 3 3 10 . . 3 4 5 4 . 8 . 12 . 10 8 9 Cutter 3 | . . . . . . . . . . . . 3 . . . . . . Saboteur 5 | . . . . . . . . . . . . . . . . 2 1 2 Grunt 88 | . 10 . 4 . . . 11 5 4 3 . 8 . 1 . . 20 22 Brawler 4 | . . . . . . . 1 1 . . . . . . . . . 2 Duelist 8 | . . . . 1 . . . 1 . . . . . . . . 1 5 Protector 1 | . . . . . . . . . . . . . . . . . . 1 Sentry 36 | . . . 1 . . . 4 4 1 2 1 . 2 9 1 2 7 2 Specialist 3 | . . . . . . . . . . . . . . . . 1 . 2 Hunter 6 | . . . . . . . . . . . . . 1 . 1 . . 4 Programmer 39 | . . . . . . . . . 4 . 1 1 1 1 7 . 14 10 Behemoth 1 | . . . . . . . . . . . . . . . . 1 . . Assembled 2 | . . . . 2 . . . . . . . . . . . . . . Best Kill Streak 21 | . 5 3 7 4 . 1 7 6 7 4 2 5 4 8 2 4 12 21 Combat Bots Only 10 | . 4 3 5 4 . . 5 6 5 4 2 5 1 8 2 4 6 10 Max Kills in Single Turn 5 | . 1 2 5 2 . 1 2 2 2 4 1 3 1 5 1 3 4 3 Gunslinging 1 | . . . . . . . 1 1 . . . . . . . . . . Exploded 5 | . . 2 3 2 . . . 2 2 4 . 3 . 5 . 3 3 3 Melee 1 | . . . . . . . . . . . . . . . . . . 1 Uniques/NPCs Destroyed . | . . . . . . . . . . . . . . . . . . . Combat | -11 -10 -10 -9 -9 -9 -8 -8 -8 -7 -7 -7 -7 -6 -6 -5 -5 -5 -4 -------- Run | Scr Mat Min Mat Min Exi Min Mat Gar Fac Gar Fac Gar Fac Gar Fac Gar Fac Fac Damage Taken 26426 | . 682 156 151 998 . . 1102 653 1126 401 334 1966 901 990 1306 742 5374 9544 Core 2909 | . 163 46 34 104 . . 43 53 226 22 27 223 130 49 61 98 465 1165 Absorbed by Shields 56 | . . . . . . . . . . . . . . . . 56 . . Core Remaining (%) 58 | 100 . 16 . . . 65 . 82 . . . 28 . 78 . . 37 . Volleys Fired 896 | . 71 11 18 35 . . 97 36 53 16 7 46 43 50 47 45 172 149 Largest 4 | . 2 2 2 2 . . 3 3 3 3 3 2 3 3 4 4 4 4 Hottest 299 | . 70 80 106 106 . . 146 113 207 145 166 117 208 208 266 266 263 299 Shots Fired 2070 | . 138 16 34 66 . . 277 81 130 33 13 53 66 120 138 89 412 404 Gun 1343 | . 138 15 32 62 . . 277 74 85 16 8 17 4 36 47 36 265 231 Cannon 576 | . . . . . . . . . 42 12 1 16 49 77 83 31 102 163 Launcher 70 | . . 1 2 4 . . . 7 3 5 . 17 . 5 . 9 12 5 Special 81 | . . . . . . . . . . . 4 3 13 2 8 13 33 5 Kinetic 1151 | . 115 4 2 25 . . 176 50 59 19 4 16 15 42 66 54 217 287 Thermal 747 | . 23 11 30 37 . . 101 24 68 9 5 17 38 71 64 13 150 86 Explosive 70 | . . 1 2 4 . . . 7 3 5 . 17 . 5 . 9 12 5 Electromagnetic 21 | . . . . . . . . . . . . . . . . . . 21 Robot Hit Streak 22 | . 8 3 6 13 . . 11 14 12 12 7 8 8 19 11 13 16 22 Robot Miss Streak 8 | . 5 2 3 4 . . 7 2 3 2 2 6 3 5 4 3 8 8 Penetration Max 2 | . . . . . . . . . . . . . . . . . 1 2 Secondary Targets 8 | . . . . . . . 3 1 . . . . . . . . 3 1 Max Gunslinging Chain 1 | . . . . . . . 1 1 . . . . . . . . 1 1 Shots Hit Robots 1301 | . 87 6 21 35 . 4 145 57 80 27 12 21 50 73 82 36 265 300 Core Hits 739 | . 32 5 15 21 . . 65 25 41 26 4 36 11 49 22 30 154 203 Critical Kills 9 | . . . . 1 . . . . . . . . . . 2 . 3 3 Critical Parts Destroyed 18 | . 2 . . . . . . . 1 1 . . . . 1 . 8 5 Critical Strikes 59 | . 3 . 2 6 . . 3 . 4 3 . 2 . 2 3 . 16 15 Burn 17 | . 1 . 2 5 . . 3 . 3 . . 1 . . . . 1 1 Meltdown 3 | . . . . . . . . . . . . . . . 2 . . 1 Destroy 22 | . 2 . . 1 . . . . . . . . . . 1 . 11 7 Blast 14 | . . . . . . . . . . 2 . 1 . 2 . . 4 5 Smash 2 | . . . . . . . . . 1 1 . . . . . . . . Sever 1 | . . . . . . . . . . . . . . . . . . 1 Melee Attacks 363 | . . . 3 1 . 6 20 3 67 9 22 . 34 . 15 9 72 102 Impact 153 | . . . 3 1 . 6 20 3 67 9 17 . 27 . . . . . Slashing 205 | . . . . . . . . . . . . . 7 . 15 9 72 102 Piercing . | . . . . . . . . . . . . . . . . . . . Sneak Attacks 65 | . . . . . . 4 1 . 14 . 1 . 8 . 4 . 17 16 Combat Hostiles . | . . . . . . . . . . . . . . . . . . . Follow-up Attacks 6 | . . . . . . . . . . . . . . . . . . 6 Damage Inflicted 46523 | . 965 229 523 818 . 374 2393 1645 2881 1744 121 1646 1852 2459 2644 1725 10739 13765 Guns 14899 | . 965 81 291 391 . . 2330 889 1068 222 96 152 66 618 486 345 3406 3493 Cannons 10312 | . . . . . . . . . 379 195 25 205 791 1128 1534 306 2280 3469 Explosions 11763 | . . 148 232 427 . . . 756 282 830 . 1289 184 713 . 1074 2786 3042 Melee 9533 | . . . . . . 374 63 . 1152 497 . . 811 . 624 . 2266 3746 Ramming 16 | . . . . . . . . . . . . . . . . . 1 15 Kinetic 14678 | . 801 . 7 107 . . 1540 596 468 296 78 205 166 616 904 531 3161 5202 Thermal 11909 | . 164 81 284 284 . . 790 293 979 121 43 152 875 1130 1116 120 3109 2368 Explosive 10108 | . . 148 232 427 . . . 756 282 830 . 1289 . 713 . 1074 2202 2155 Electromagnetic 279 | . . . . . . . . . . . . . . . . . . 279 Impact 2897 | . . . . . . 374 63 . 1152 497 . . 811 . . . . . Slashing 6636 | . . . . . . . . . . . . . . . 624 . 2266 3746 Piercing . | . . . . . . . . . . . . . . . . . . . Highest Corruption 27 | . 4 4 . . . . . . 4 4 4 4 . . 5 . 13 27 Average Corruption 5 | . 3 4 . . . . . . 1 4 4 4 . . 3 . 5 12 Corruption Purged 6 | . . . . . . . . . . . . . . . 6 . . . Effects 304 | . 23 5 . . . . . . 15 13 16 36 . . 14 . 67 115 Message Errors 74 | . 8 1 . . . . . . 5 3 1 12 . . 4 . 16 24 Matter Fused 73 | . 5 1 . . . . . . 3 6 6 10 . . 4 . 17 21 Heat Flow Errors 28 | . 4 . . . . . . . . . 3 2 . . 1 . 11 7 Energy Discharges 50 | . 1 3 . . . . . . 3 2 4 5 . . 2 . 10 20 Parts Rejected 3 | . . . . . . . . . . . . 1 . . . . 1 1 Data Loss (minor) 40 | . 3 . . . . . . . 4 2 2 5 . . 2 . 4 18 Data Loss (major) 9 | . . . . . . . . . . . . . . . 1 . 3 5 Misfires 6 | . . . . . . . . . . . . . . . . . 2 4 Alerts 2 | . . . . . . . . . . . . . . . . . . 2 Misdirections 6 | . . . . . . . . . . . . . . . . . 2 4 Weapon Failures 13 | . 2 . . . . . . . . . . 1 . . . . 1 9 Overload Shots . | . . . . . . . . . . . . . . . . . . . Overflow Damage 4227 | . . . . 71 . 224 . . 573 171 . 48 637 49 321 50 1065 1018 Projectiles 339 | . . . . . . . . . 41 . . 16 15 1 108 . 109 49 Explosions 396 | . . . . 71 . . . . . . . 32 119 48 . 50 25 51 Melee 3492 | . . . . . . 224 . . 532 171 . . 503 . 213 . 931 918 Knockbacks 69 | . . . . . . 1 . . 3 3 . 3 5 . 13 1 11 29 Impact 9 | . . . . . . 1 . . 1 2 . . 5 . . . . . Kinetic 56 | . . . . . . . . . 2 . . 3 . . 13 1 11 26 Secondary 4 | . . . . . . . . . . 1 . . . . . . . 3 Self-Inflicted Damage 1173 | . . 22 7 138 . . . . . . . 224 145 76 . 16 185 360 Shots 30 | . . 1 1 4 . . . . . . . 5 2 2 . 1 6 8 Rammed 3 | . . . . . . . . . . . . . . . . . 1 2 Targets Rammed 3 | . . . . . . . . . . . . . . . . . 1 2 Kicked . | . . . . . . . . . . . . . . . . . . . Crushed . | . . . . . . . . . . . . . . . . . . . Highest Temperature 481 | . 281 203 75 180 . . 192 322 405 304 159 280 297 84 376 347 414 481 Average Temperature 90 | . 79 88 24 62 . . 53 99 94 112 73 127 98 26 115 80 85 125 Received Heat Transfer 4737 | . 357 . 75 80 . . 603 243 159 81 90 468 102 183 27 75 1174 1020 Effects 19 | . 2 . . . . . . . . . . . . . 1 1 2 13 Shutdowns 7 | . . . . . . . . . . . . . . . 1 1 1 4 Energy Bleed 4 | . . . . . . . . . . . . . . . . . . 4 Interference 8 | . 2 . . . . . . . . . . . . . . . 1 5 Siege Activations 2 | . . . . . . . . . . . . . . . . . 2 . Total Turns 12 | . . . . . . . . . . . . . . . . . 12 . Longest Duration 9 | . . . . . . . . . . . . . . . . . 9 . Robots Corrupted 1 | . . . . . . . . . . . . . . . . . . 1 Combat Hostiles 1 | . . . . . . . . . . . . . . . . . . 1 Parts Fried 34 | . . . . . . 5 . . 16 1 . . 12 . . . . . Impact Corruptions 49 | . . . . . . 8 . . 22 5 . . 13 . . . . 1 Robots Melted 8 | . . . . . . . . . 1 . . . . 1 2 . 1 3 Combat Hostiles 7 | . . . . . . . . . 1 . . . . 1 1 . 1 3 Parts Melted 40 | . 1 1 1 3 . . 4 . 7 . 1 1 3 2 5 . 10 1 Heat Transferred 20076 | . 555 222 888 1110 . . 2109 629 2000 177 74 370 1461 2400 1033 175 4654 2219 Parts Sabotaged 12 | . . . . . . . . . . . . . . . . 4 . 8 Parts Stolen . | . . . . . . . . . . . . . . . . . . . Parts Stripped . | . . . . . . . . . . . . . . . . . . . Power Chain Reactions . | . . . . . . . . . . . . . . . . . . . Missiles Intercepted . | . . . . . . . . . . . . . . . . . . . Alert | -11 -10 -10 -9 -9 -9 -8 -8 -8 -7 -7 -7 -7 -6 -6 -5 -5 -5 -4 ------- Run | Scr Mat Min Mat Min Exi Min Mat Gar Fac Gar Fac Gar Fac Gar Fac Gar Fac Fac Peak Influence 1711 | . 273 81 307 250 . 16 553 688 374 576 321 499 268 613 342 751 1073 1711 Initial 525 | . . 1 . 53 . . 1 175 361 239 302 . 261 25 321 120 394 525 Average 375 | . 87 47 120 72 . 7 280 469 215 428 150 309 61 365 216 669 363 912 Maximum Alert Level 5 | . 1 . 1 1 . . 2 2 1 2 1 2 1 2 1 3 3 5 Low Security (%) 37 | 100 91 100 78 96 . 100 26 8 53 . 61 41 93 6 40 2 38 . Level 1 22 | . 8 . 21 3 . . 36 28 46 34 38 14 6 50 59 6 26 1 Level 2 19 | . . . . . . . 36 62 . 65 . 43 . 43 . 26 11 30 Level 3 16 | . . . . . . . . . . . . . . . . 63 23 41 Level 4 2 | . . . . . . . . . . . . . . . . . . 20 Level 5 . | . . . . . . . . . . . . . . . . . . 6 High Security . | . . . . . . . . . . . . . . . . . . . Max Security . | . . . . . . . . . . . . . . . . . . . Squads Dispatched 55 | . 2 . 2 . . . 3 . 5 . 3 . 2 . 4 . 15 19 Investigation 3 | . 1 . . . . . . . . . . . . . 1 . 1 . Extermination 23 | . . . . . . . . . 4 . 3 . 1 . 2 . 8 5 Reinforcement 16 | . 1 . 2 . . . . . 1 . . . 1 . 1 . 4 6 Assault 10 | . . . . . . . . . . . . . . . . . 2 8 Garrison 3 | . . . . . . . 3 . . . . . . . . . . . Intercept . | . . . . . . . . . . . . . . . . . . . Construction Impeded 4 | . . . 1 . . . . . . . . . . . . . . 3 Haulers Reinforced . | . . . . . . . . . . . . . . . . . . . Active Scanning Responses . | . . . . . . . . . . . . . . . . . . . Cargo Convoy Interrupts 2 | . . . . . . . . . . . . . 1 . . . . 1 Alert ID Control Effect 9 | . . . . . . . . . . . . . . . 1 4 3 1 Stealth | -11 -10 -10 -9 -9 -9 -8 -8 -8 -7 -7 -7 -7 -6 -6 -5 -5 -5 -4 --------- Run | Scr Mat Min Mat Min Exi Min Mat Gar Fac Gar Fac Gar Fac Gar Fac Gar Fac Fac Distress Signals 15 | . . . 4 . . . 7 . 2 . . . . . . . . 2 Communications Jammed 49 | . . . . . . . . . . . . . 11 . . . 38 . Distress Signals 49 | . . . . . . . . . . . . . 11 . . . 38 . Times Spotted 468 | . 20 3 24 28 . . 44 16 23 11 6 19 13 26 14 24 93 104 Peak Tracking Total 17 | . 3 3 5 10 . . 12 7 8 4 2 6 2 8 4 4 8 17 Tactical Retreats 23 | . 1 . 2 1 . . 8 2 1 2 . . . . . . 4 2 Traps | -11 -10 -10 -9 -9 -9 -8 -8 -8 -7 -7 -7 -7 -6 -6 -5 -5 -5 -4 ------- Run | Scr Mat Min Mat Min Exi Min Mat Gar Fac Gar Fac Gar Fac Gar Fac Gar Fac Fac Traps Triggered 42 | . 2 . 1 . . . . 3 3 3 . 3 . 6 1 13 2 5 Indirectly . | . . . . . . . . . . . . . . . . . . . Trap Hack Attempts . | . . . . . . . . . . . . . . . . . . . Triggered . | . . . . . . . . . . . . . . . . . . . Disarmed . | . . . . . . . . . . . . . . . . . . . Reprogrammed . | . . . . . . . . . . . . . . . . . . . Reused . | . . . . . . . . . . . . . . . . . . . Traps Extracted . | . . . . . . . . . . . . . . . . . . . Installed . | . . . . . . . . . . . . . . . . . . . Triggered 3 | . . . . . . . . . . . . . 2 . . . 1 . Machines | -11 -10 -10 -9 -9 -9 -8 -8 -8 -7 -7 -7 -7 -6 -6 -5 -5 -5 -4 ---------- Run | Scr Mat Min Mat Min Exi Min Mat Gar Fac Gar Fac Gar Fac Gar Fac Gar Fac Fac Machines Disabled 55 | . . . . 3 . . 3 1 . 1 . 3 2 4 7 3 14 14 Max in Single Turn 5 | . . . . 1 . . 1 1 . 1 . 1 2 1 1 1 5 3 Garrison Access 2 | . . . . . . . . . 1 . . . . . . . . 1 Garrison Relay 9 | . . . . . . . . 1 . 1 . 1 . 2 . 4 . . Machines Sabotaged . | . . . . . . . . . . . . . . . . . . . Garrisons Compromised 1 | . . . . . . . . . . . . . 1 . . . . . Overloaded Fab Kills . | . . . . . . . . . . . . . . . . . . . Hacking | -11 -10 -10 -9 -9 -9 -8 -8 -8 -7 -7 -7 -7 -6 -6 -5 -5 -5 -4 --------- Run | Scr Mat Min Mat Min Exi Min Mat Gar Fac Gar Fac Gar Fac Gar Fac Gar Fac Fac Machines Accessed 49 | . 6 1 1 1 2 . 3 . 10 . 3 . 6 . 7 . 6 3 Terminals 26 | . 4 . 1 1 . . 1 . 5 . 2 . 2 . 4 . 5 1 Fabricators 1 | . . . . . . . . . . . . . . . 1 . . . Repair Stations 6 | . 1 . . . . . 1 . 1 . . . 1 . 1 . . 1 Recycling Units 5 | . 1 . . . . . . . 2 . . . 1 . . . 1 . Scanalyzers 1 | . . . . . . . . . . . . . 1 . . . . . Garrison Access 7 | . . . . . . . 1 . 2 . 1 . 1 . 1 . . 1 Total Hacks 118 | . 20 1 3 1 2 . 13 . 20 . 8 . 13 . 17 . 16 4 Successful 58 | . 12 1 1 . 2 . 9 . 11 . 4 . 3 . 8 . 6 1 Failed 60 | . 8 . 2 1 . . 4 . 9 . 4 . 10 . 9 . 10 3 Catastrophic 11 | . . . . 1 . . 1 . 2 . . . 2 . 2 . 2 1 Database Lockouts . | . . . . . . . . . . . . . . . . . . . Manual 64 | . 16 . 3 1 1 . 4 . 8 . 6 . 5 . 4 . 14 2 Terminals 71 | . 15 . 3 1 . . 4 . 10 . 7 . 5 . 11 . 13 2 Fabricators 1 | . . . . . . . . . . . . . . . 1 . . . Repair Stations 21 | . 3 . . . . . 7 . 3 . . . 3 . 4 . . 1 Recycling Units 11 | . 2 . . . . . . . 4 . . . 2 . . . 3 . Scanalyzers 2 | . . . . . . . . . . . . . 2 . . . . . Garrison Access 9 | . . . . . . . 2 . 3 . 1 . 1 . 1 . . 1 Terminal Hacks 17 | . 4 1 . . 2 . 1 . 1 . 2 . . . 4 . 2 . Record 1 | . . . . . 1 . . . . . . . . . . . . . Robot Analysis 3 | . 3 . . . . . . . . . . . . . . . . . Open Door 1 | . . 1 . . . . . . . . . . . . . . . . Open DSF 2 | . . . . . . . . . 1 . . . . . 1 . . . Terminal Index 4 | . 1 . . . . . . . . . 1 . . . 1 . 1 . Unreport Threat 3 | . . . . . . . 1 . . . 1 . . . . . 1 . Locate Traps 1 | . . . . . . . . . . . . . . . 1 . . . Hauler Manifests 1 | . . . . . . . . . . . . . . . 1 . . . EX-Prototype ID Bank 1 | . . . . . 1 . . . . . . . . . . . . . Fabricator Hacks 1 | . . . . . . . . . . . . . . . 1 . . . Network Status 1 | . . . . . . . . . . . . . . . 1 . . . Repair Station Hacks 11 | . 2 . . . . . 6 . 2 . . . . . 1 . . . Scan Component 6 | . 1 . . . . . 3 . 1 . . . . . 1 . . . Repair 5 | . 1 . . . . . 3 . 1 . . . . . . . . . Recycling Unit Hacks 3 | . 1 . . . . . . . 1 . . . . . . . 1 . Retrieve Components 3 | . 1 . . . . . . . 1 . . . . . . . 1 . Scanalyzer 1 | . . . . . . . . . . . . . 1 . . . . . Insert Component 1 | . . . . . . . . . . . . . 1 . . . . . Garrison Access Hacks 8 | . . . . . . . 1 . 3 . 1 . 1 . 1 . . 1 Unlock Access 5 | . . . . . . . 1 . 1 . 1 . 1 . 1 . . . Seal Access 2 | . . . . . . . . . 1 . . . . . . . . 1 Coupler Status 1 | . . . . . . . . . 1 . . . . . . . . . Unauthorized Hacks 17 | . 5 . 1 . . . 1 . 4 . 1 . 1 . 1 . 3 . Terminals 16 | . 4 . 1 . . . 1 . 4 . 1 . 1 . 1 . 3 . Track 1 | . 1 . . . . . . . . . . . . . . . . . Assimilate 2 | . . . . . . . . . 1 . . . . . . . 1 . Botnet 12 | . 2 . 1 . . . 1 . 3 . 1 . 1 . 1 . 2 . Operators 1 | . 1 . . . . . . . . . . . . . . . . . Fabricators . | . . . . . . . . . . . . . . . . . . . Repair Stations . | . . . . . . . . . . . . . . . . . . . Recycling Units 1 | . 1 . . . . . . . . . . . . . . . . . Tunnel 1 | . 1 . . . . . . . . . . . . . . . . . Scanalyzers . | . . . . . . . . . . . . . . . . . . . Garrison Access . | . . . . . . . . . . . . . . . . . . . Data Cores Recovered . | . . . . . . . . . . . . . . . . . . . Used . | . . . . . . . . . . . . . . . . . . . Hacking Detections 38 | . 6 . 1 1 . . 2 . 8 . 2 . 5 . 5 . 6 2 Full Trace Events 1 | . . . . . . . . . . . . . . . 1 . . . Feedback Events 1 | . . . . . . . . . . . . . . . 1 . . . Hackware Fried 1 | . . . . . . . . . . . . . . . 1 . . . Feedback Blocked . | . . . . . . . . . . . . . . . . . . . Robot Schematics Acquired . | . . . . . . . . . . . . . . . . . . . Robots Built . | . . . . . . . . . . . . . . . . . . . Authchips . | . . . . . . . . . . . . . . . . . . . Time . | . . . . . . . . . . . . . . . . . . . Total Robot Build Rating . | . . . . . . . . . . . . . . . . . . . Part Schematics Acquired . | . . . . . . . . . . . . . . . . . . . Parts Built . | . . . . . . . . . . . . . . . . . . . Authchips . | . . . . . . . . . . . . . . . . . . . Time . | . . . . . . . . . . . . . . . . . . . Total Part Build Rating . | . . . . . . . . . . . . . . . . . . . Parts Repaired 5 | . 1 . . . . . 3 . 1 . . . . . . . . . Time 141 | . 38 . . . . . 84 . 19 . . . . . . . . . Parts Recycled . | . . . . . . . . . . . . . . . . . . . Recycled Matter . | . . . . . . . . . . . . . . . . . . . Retrieved Matter . | . . . . . . . . . . . . . . . . . . . Retrieved Components 13 | . 2 . . . . . . . 10 . . . . . . . 1 . Parts Scanalyzed 1 | . . . . . . . . . . . . . 1 . . . . . Part Schematics Acquired . | . . . . . . . . . . . . . . . . . . . Parts Damaged . | . . . . . . . . . . . . . . . . . . . Bothacking | -11 -10 -10 -9 -9 -9 -8 -8 -8 -7 -7 -7 -7 -6 -6 -5 -5 -5 -4 ------------ Run | Scr Mat Min Mat Min Exi Min Mat Gar Fac Gar Fac Gar Fac Gar Fac Gar Fac Fac Used RIF Installer 5 | . . . . . . . . 1 . 1 . 1 . 1 . 1 . . Hotswap 1 | . . . . . . . . . . 1 . . . . . . . . Signal Jammer 1 | . . . . . . . . . . . . 1 . . . . . . Patrol Navigation 1 | . . . . . . . . . . . . . . . . 1 . . Alert ID Control 1 | . . . . . . . . . . . . . . 1 . . . . Robots Hacked 35 | . . . . . . . . . . . 2 1 7 1 3 7 13 1 Non-combat 12 | . . . . . . . . . . . . . 5 . 2 . 5 . Combat 23 | . . . . . . . . . . . 2 1 2 1 1 7 8 1 Robot Hacks Applied 46 | . . . . . . . . . . . 4 1 7 1 6 7 18 2 parse_system 3 | . . . . . . . . . . . . . 3 . . . . . no_distress 1 | . . . . . . . . . . . . . 1 . . . . . find_chute 1 | . . . . . . . . . . . . . 1 . . . . . drop_inventory 2 | . . . . . . . . . . . . . . . 1 . 1 . purge_threat 6 | . . . . . . . . . . . . . 1 . 2 . 3 . find_terminals 1 | . . . . . . . . . . . . . . . . . 1 . block_reporting 1 | . . . . . . . . . . . . . . . 1 . . . summon_haulers 3 | . . . . . . . . . . . . . . . 1 . 2 . find_garrison 2 | . . . . . . . . . . . 1 . . . . . 1 . spike_heat 1 | . . . . . . . . . . . 1 . . . . . . . reboot_system 1 | . . . . . . . . . . . . . . . . . . 1 go_dormant 1 | . . . . . . . . . . . . . . . . . 1 . overwrite_iff 13 | . . . . . . . . . . . . . 1 1 1 4 5 1 formatsys_low 2 | . . . . . . . . . . . . . . . . . 2 . formatsys_high 8 | . . . . . . . . . . . 2 1 . . . 3 2 . Relay Couplers Released 34 | . . . . . . . . 3 . 3 . 3 . 8 . 17 . . Machine Destruction 34 | . . . . . . . . 3 . 3 . 3 . 8 . 17 . . Attached 18 | . . . . . . . . . . . 2 1 2 . 3 5 5 . Robots Rewired . | . . . . . . . . . . . . . . . . . . . Allies Hacked 1 | . . . . . . . . . . . . . . . . . 1 . Hacks Repelled . | . . . . . . . . . . . . . . . . . . . Allies | -11 -10 -10 -9 -9 -9 -8 -8 -8 -7 -7 -7 -7 -6 -6 -5 -5 -5 -4 -------- Run | Scr Mat Min Mat Min Exi Min Mat Gar Fac Gar Fac Gar Fac Gar Fac Gar Fac Fac Total Allies 30 | . . . . 3 . . . . 1 . 2 1 1 1 1 7 9 4 Largest Group 3 | . . . . 3 . . . . 1 . 1 1 1 1 1 3 3 3 Highest-Rated Group 147 | . . . . 40 . . . . 26 . 32 16 41 29 41 147 80 138 Highest-Rated Ally 56 | . . . . 16 . . . . 26 . 32 16 41 29 41 49 49 56 Total Orders 20 | . . . . . . . . . 1 . 6 . . . . 2 11 . STAY 15 | . . . . . . . . . 1 . 6 . . . . 1 7 . FOLLOW 5 | . . . . . . . . . . . . . . . . 1 4 . Ally Attacks 107 | . . . . 14 . . . . . . 3 1 4 15 2 30 18 20 Total Damage 2769 | . . . . 142 . . . . . . 118 22 168 162 75 824 702 556 Kills 23 | . . . . 5 . . . . . . 1 . 1 1 1 5 4 5 Allies Corrupted 1 | . . . . . . . . . . . . . . . . . 1 . Allies Melted . | . . . . . . . . . . . . . . . . . . . Intel | -11 -10 -10 -9 -9 -9 -8 -8 -8 -7 -7 -7 -7 -6 -6 -5 -5 -5 -4 ------- Run | Scr Mat Min Mat Min Exi Min Mat Gar Fac Gar Fac Gar Fac Gar Fac Gar Fac Fac Robot Analysis Total 3 | . 3 . . . . . . . . . . . . . . . . . Derelict Logs Recovered 2 | . . 1 . 1 . . . . . . . . . . . . . . Drone Launches . | . . . . . . . . . . . . . . . . . . . Drone Recoveries . | . . . . . . . . . . . . . . . . . . . Exploration | -11 -10 -10 -9 -9 -9 -8 -8 -8 -7 -7 -7 -7 -6 -6 -5 -5 -5 -4 ------------- Run | Scr Mat Min Mat Min Exi Min Mat Gar Fac Gar Fac Gar Fac Gar Fac Gar Fac Fac Turns Passed 30119 | 10 1299 598 453 1355 509 588 1690 1341 2971 563 801 1560 1570 1879 1583 4239 4059 3051 Spaces Moved 16063 | 6 671 401 210 847 357 406 789 513 1641 339 408 693 1023 1023 936 2412 1919 1469 Core 10 | . . . . . . . . . . . . . . . . . 10 . Treads 1089 | . 44 . . . . . . 380 165 . . 284 . 1 . . 103 112 Legs 29 | 3 . . . . . . . . . . . . . . . . . 26 Wheels 14926 | 3 627 401 210 847 357 406 789 133 1476 339 408 409 1023 1022 936 2412 1797 1331 Hover 9 | . . . . . . . . . . . . . . . . . 9 . Flight . | . . . . . . . . . . . . . . . . . . . Fastest Speed 100 | 100 100 140 140 140 140 140 125 135 120 135 135 135 120 120 115 115 115 110 Average Speed 148 | 110 137 140 149 140 140 140 140 214 144 135 135 181 122 150 135 156 157 141 Slowest Speed 1900 | 120 320 140 155 215 230 140 155 240 240 135 135 480 150 400 165 160 1900 305 Overloaded Moves . | . . . . . . . . . . . . . . . . . . . Propulsion Burnouts . | . . . . . . . . . . . . . . . . . . . Robots Hopped . | . . . . . . . . . . . . . . . . . . . Cave-ins Triggered . | . . . . . . . . . . . . . . . . . . . Exploration Rate (%) 49 | 2 81 73 24 96 72 86 37 54 31 47 9 61 18 77 15 95 33 24 Regions Visited 18 Branch Regions 4 Pre-discovered Areas 4 | . 1 2 . . 1 . . . . . . . . . . . . . Known Exits Taken 8 | . . . . 1 1 1 1 . 1 . 1 . 1 . 1 . . . Unknown Exits Taken 5 | 1 1 1 1 . . . . . . . . . . . . . 1 . Scrap Searched 3 | . . 1 . 1 . 1 . . . . . . . . . . . . Spaces Dug 258 | . . 8 2 10 . 2 18 . 48 . 16 9 20 17 17 7 47 37 Terrain Destroyed 1223 | . . 8 22 49 . 2 18 49 64 11 16 82 75 50 93 100 310 274 Melee 189 | . . . 2 1 . 2 18 . 47 . 16 . 19 . 9 2 41 32 Projectile 208 | . . . . . . . . . 9 2 . . 3 . 39 6 63 86 AOE 826 | . . 8 20 48 . . . 49 8 9 . 82 53 50 45 92 206 156 Terrain Rammed . | . . . . . . . . . . . . . . . . . . . Walls Destroyed . | . . . . . . . . . . . . . . . . . . . Machines Disabled . | . . . . . . . . . . . . . . . . . . . Actions | -11 -10 -10 -9 -9 -9 -8 -8 -8 -7 -7 -7 -7 -6 -6 -5 -5 -5 -4 --------- Run | Scr Mat Min Mat Min Exi Min Mat Gar Fac Gar Fac Gar Fac Gar Fac Gar Fac Fac Total 20378 | 10 924 424 317 944 366 418 1186 709 2076 408 626 944 1243 1260 1127 2849 2515 2032 Wait 1352 | 1 110 . 56 8 . . 177 79 194 6 153 138 59 63 38 28 137 105 Move 16044 | 5 670 400 209 846 356 405 788 511 1640 337 407 692 1023 1022 935 2411 1918 1469 Hop . | . . . . . . . . . . . . . . . . . . . Pick Up 367 | . 37 2 9 11 1 2 22 20 24 3 6 17 19 14 16 103 32 29 Fast Attach 151 | . 6 . . 1 3 . 7 2 10 . 2 1 11 6 11 12 37 42 Attach 161 | 2 7 . 3 8 1 1 10 8 4 . . 8 9 9 9 5 29 48 Detach 54 | . 3 . . 1 1 . 3 . 2 . . 1 3 8 . 4 10 18 Swap 384 | . 4 6 8 25 . 1 29 24 37 8 17 14 19 22 28 31 69 42 Drop 439 | 2 16 5 11 8 4 3 33 26 45 5 11 9 23 21 28 117 38 34 Fire 896 | . 71 11 18 35 . . 97 36 53 16 7 46 43 50 47 45 172 149 Melee 355 | . . . 3 1 . 6 20 3 67 9 22 . 34 . 15 9 72 94 Ram 2 | . . . . . . . . . . . . . . . . . . 2 Kick . | . . . . . . . . . . . . . . . . . . . Crush 1 | . . . . . . . . . . . . . . . . . 1 . Escape Stasis 171 | . . . . . . . . . . 24 . 18 . 45 . 84 . . Rewire 1 | . . . . . . . . . . . 1 . . . . . . . Trap . | . . . . . . . . . . . . . . . . . . . Miscellaneous . | . . . . . . . . . . . . . . . . . . . Route ------- -11/Scrapyard -10/Materials (discovered 4 exits: *Mat x3 / *Min) -10/Mines -9/Materials (discovered 2 exits: *Min / [*Sto]) -9/Mines (discovered 4 exits: *Mat x2 / *Exi / *Zio) -9/Exiles (discovered 2 exits: *Min x2) -8/Mines -8/Materials -8/Garrison -7/Factory -7/Garrison -7/Factory -7/Garrison (discovered 2 exits: *Fac x2) -6/Factory -6/Garrison (discovered 3 exits: *Fac x3) -5/Factory -5/Garrison (discovered 3 exits: *Fac x3) -5/Factory -4/Factory History --------- Turn | Location | Event 1 | -11/Scrapyard | Discovered new exit (range 3) 11 | -11/Scrapyard | Entered Materials 161 | -10/Materials | Discovered new exit (range 12) 250 | -10/Materials | Discovered new exit (range 16) 300 | -10/Materials | Build established: Mutant 453 | -10/Materials | Discovered new exit (range 5) 591 | -10/Materials | Discovered new exit (range 3) 868 | -10/Materials | Core integrity fell below 50% 900 | -10/Materials | Lost 5 parts (2n3w) 1181 | -10/Materials | Repaired Lgt. Nuclear Core 1310 | -10/Materials | Entered Mines 1331 | -10/Mines | Core integrity fell below 20% 1429 | -10/Mines | Met a Derelict bent on vengeance 1555 | -10/Mines | Build established: Scavenger-Mutant 1731 | -10/Mines | Learned location of Zion (-7) 1872 | -10/Mines | Discovered new exit (range 10) 1889 | -10/Mines | Met a Derelict who couldn't figure out how to use a Trap Extractor 1908 | -10/Mines | Entered Materials 1908 | -9/Materials | Evolved 2 slots: Utility x2 1941 | -9/Materials | Discovered new exit (range 12) 2218 | -9/Materials | Discovered new exit (range 13) 2361 | -9/Materials | Entered Mines 2460 | -9/Mines | Assembled infested the area 2539 | -9/Mines | Lost 5 parts (1n2u2w) 2603 | -9/Mines | Assisted by bots powering up and referring to "LRC-V3" 2622 | -9/Mines | Discovered new exit (range 10) 2760 | -9/Mines | Discovered new exit (range 8) 2867 | -9/Mines | Lost 3 parts (1p2u) 3605 | -9/Mines | Learned Materials emergency access door positions 3626 | -9/Mines | A Derelict revealed a hidden shortcut to a safe place 3633 | -9/Mines | Identified exit to Zion 3709 | -9/Mines | Deemed a non-threat by the Exiles lab entrance 3710 | -9/Mines | Discovered new exit (range 5) 3714 | -9/Mines | Identified exit to Exiles 3716 | -9/Mines | Entered Exiles 3737 | -9/Exiles | Discovered new exit (range 15) 3751 | -9/Exiles | Met 8R-AWN 3774 | -9/Exiles | Met EX-HEX 3814 | -9/Exiles | Met EX-BIN 3834 | -9/Exiles | Aligned with FarCom system 3835 | -9/Exiles | Given EX-Vault access code 3869 | -9/Exiles | Opened EX-Vault 3882 | -9/Exiles | Found Skeleton Box 3914 | -9/Exiles | Warned to stay clear of 0b10 Research branches 3957 | -9/Exiles | Met EX-DEC 4208 | -9/Exiles | Discovered new exit (range 14) 4223 | -9/Exiles | Identified exit to Mines 4225 | -9/Exiles | Left Exiles lab with Skeleton Box 4225 | -9/Exiles | Entered Mines 4765 | -8/Mines | Discovered new exit (range 4) 4768 | -8/Mines | Identified exit to Materials 4813 | -8/Mines | Entered Materials 4813 | -8/Materials | Evolved 2 slots: Propulsion x1, Weapon x1 4918 | -8/Materials | Repaired Lgt. Armor Plating 4948 | -8/Materials | Repaired Lgt. Armor Plating 4982 | -8/Materials | Repaired Rocket Launcher 5439 | -8/Materials | Build established: Scavenger-Skirmisher 5444 | -8/Materials | Lost 3 parts (1p1n1w) 5621 | -8/Materials | Garrison activated, responded to threat 5912 | -8/Materials | Garrison activated, responded to threat 6170 | -8/Materials | Build established: Scavenger-Mutant 6422 | -8/Materials | Identified exit to Garrison 6438 | -8/Materials | Garrison activated, responded to threat 6503 | -8/Materials | Entered Garrison 6606 | -8/Garrison | Triggered checkpoint 6989 | -8/Garrison | Triggered checkpoint 7006 | -8/Garrison | Triggered checkpoint 7096 | -8/Garrison | Discovered new exit (range 15) 7149 | -8/Garrison | Installed Relay Interface Framework 7544 | -8/Garrison | Build established: Scavenger-Tank 7680 | -8/Garrison | Triggered checkpoint 7732 | -8/Garrison | Garrison Relay disabled 7844 | -8/Garrison | Entered Factory 7844 | -7/Factory | Evolved 2 slots: Utility x2 7986 | -7/Factory | Build established: Scavenger-Mutant 9188 | -7/Factory | Identified exit to Garrison 9996 | -7/Factory | Build established: Mutant 10118 | -7/Factory | Repaired Imp. Grenade Launcher 10815 | -7/Factory | Entered Garrison 10822 | -7/Garrison | Expanded RIF knowledge: Hotswap 10901 | -7/Garrison | Triggered checkpoint 10940 | -7/Garrison | Triggered checkpoint 10984 | -7/Garrison | Triggered checkpoint 11007 | -7/Garrison | Garrison Relay disabled 11283 | -7/Garrison | Discovered new exit (range 15) 11378 | -7/Garrison | Entered Factory 11993 | -7/Factory | P-60 Hacker assimilated allied Guardian 4a 12099 | -7/Factory | Identified exit to Garrison 12179 | -7/Factory | Entered Garrison 12202 | -7/Garrison | Triggered checkpoint 12467 | -7/Garrison | Triggered checkpoint 12495 | -7/Garrison | Garrison Relay disabled 12954 | -7/Garrison | Triggered checkpoint 13036 | -7/Garrison | Triggered checkpoint 13055 | -7/Garrison | Triggered checkpoint 13058 | -7/Garrison | Core integrity fell below 50% 13119 | -7/Garrison | Lost 6 parts (1p2n2u1w) 13425 | -7/Garrison | Discovered new exit (range 15) 13516 | -7/Garrison | Triggered checkpoint 13700 | -7/Garrison | Discovered new exit (range 15) 13731 | -7/Garrison | Expanded RIF knowledge: Signal Jamming 13739 | -7/Garrison | Entered Factory 13739 | -6/Factory | Evolved 2 slots: Propulsion x1, Utility x1 14562 | -6/Factory | Lost 3 parts (2u1w) 14726 | -6/Factory | Lost 4 parts (1p2n1u) 14894 | -6/Factory | Cargo convoy interrupted 15107 | -6/Factory | Build established: Scavenger-Mutant 15199 | -6/Factory | Found Prototype Launcher 15206 | -6/Factory | Identified Scatter Rocket Array 15309 | -6/Factory | Identified exit to Garrison 15309 | -6/Factory | Entered Garrison 15448 | -6/Garrison | Triggered checkpoint 15459 | -6/Garrison | Destroyed 8 combat bots 15482 | -6/Garrison | Triggered checkpoint 15541 | -6/Garrison | Discovered new exit (range 9) 15777 | -6/Garrison | Build established: Scavenger-Skirmisher 15786 | -6/Garrison | Discovered new exit (range 15) 15815 | -6/Garrison | Expanded RIF knowledge: Alert ID Control 16073 | -6/Garrison | Triggered checkpoint 16155 | -6/Garrison | Discovered new exit (range 8) 16279 | -6/Garrison | Triggered checkpoint 16333 | -6/Garrison | Lost 3 parts (3u) 16380 | -6/Garrison | Garrison Relay disabled 16522 | -6/Garrison | Triggered checkpoint 16810 | -6/Garrison | Triggered checkpoint 16829 | -6/Garrison | Build established: Bothacker-Tank 16962 | -6/Garrison | Garrison Relay disabled 17054 | -6/Garrison | Triggered checkpoint 17188 | -6/Garrison | Entered Factory 17188 | -5/Factory | Evolved 2 slots: Utility x1, Weapon x1 17504 | -5/Factory | Build established: Bothacker-Mutant 17902 | -5/Factory | Lost 3 parts (1n2u) 18315 | -5/Factory | Identified exit to Garrison 18713 | -5/Factory | System Shield fried by hacking feedback 18771 | -5/Factory | Entered Garrison 18842 | -5/Garrison | Triggered checkpoint 18891 | -5/Garrison | Garrison Relay disabled 18961 | -5/Garrison | Triggered checkpoint 18973 | -5/Garrison | Spotted B-75 Beast 18986 | -5/Garrison | Triggered checkpoint 19032 | -5/Garrison | Destroyed B-75 Beast 19117 | -5/Garrison | Triggered checkpoint 19164 | -5/Garrison | Triggered checkpoint 19313 | -5/Garrison | Discovered new exit (range 8) 19334 | -5/Garrison | Expanded RIF knowledge: Patrol Navigation 19396 | -5/Garrison | Triggered checkpoint 19532 | -5/Garrison | Garrison Relay disabled 19735 | -5/Garrison | Discovered new exit (range 11) 19873 | -5/Garrison | Build established: Scavenger-Mutant 20043 | -5/Garrison | Triggered checkpoint 20155 | -5/Garrison | Garrison Relay disabled 20372 | -5/Garrison | Discovered new exit (range 15) 20446 | -5/Garrison | Triggered checkpoint 20517 | -5/Garrison | Garrison Relay disabled 22580 | -5/Garrison | Build established: Scavenger-Tank 23010 | -5/Garrison | Entered Factory 23187 | -5/Factory | Build established: Botlord-Mutant 23922 | -5/Factory | Build established: Bothacker-Mutant 24675 | -5/Factory | P-70 Sage assimilated allied Administrator 6b 25461 | -5/Factory | Lost 3 parts (1n2u) 25853 | -5/Factory | Build established: Scavenger-Mutant 25950 | -5/Factory | Lost 5 parts (1p2n2u) 26010 | -5/Factory | First assault squad dispatched 26139 | -5/Factory | Lost 8 parts (2n2u4w) 26193 | -5/Factory | Lost 4 parts (1p2n1u) 26452 | -5/Factory | Build established: Mutant 26542 | -5/Factory | Core integrity fell below 50% 26548 | -5/Factory | System corruption reached 10% 26642 | -5/Factory | Discovered new exit (range 13) 26799 | -5/Factory | Lost 12 parts (1n6u5w) 27069 | -5/Factory | Entered another Factory area 27069 | -4/Factory | Evolved 2 slots: Propulsion x1, Utility x1 27264 | -4/Factory | Build established: Scavenger-Mutant 27819 | -4/Factory | First assault squad dispatched 28175 | -4/Factory | System corruption reached 10% 29054 | -4/Factory | Allied Derelicts emerged from ambush trap array 29609 | -4/Factory | Destroyed 10 combat bots 29619 | -4/Factory | Lost 16 parts (1p6n4u5w) 29804 | -4/Factory | Core integrity fell below 50% 29826 | -4/Factory | Lost 13 parts (4n5u4w) 29914 | -4/Factory | Core integrity fell below 20% 30026 | -4/Factory | Lost 3 parts (2n1u) 30108 | -4/Factory | Cargo convoy interrupted 30120 | -4/Factory | Destroyed by P-70 Sage with High-powered Shock Rifle Last Messages --------------- 30108_ Field Recycling Unit destroyed. 30110_ K-01 Serf collects debris. 30110_ Slug penetrates K-01 Serf. 30110_ K-01 Serf destroyed. 30110_ Slug penetrates Construction Platform. 30110_ Penetrated by Slug. 30110_ Slug penetrates Construction Platform. 30110_ Microactuators destroyed. 30110_ Med. Storage Unit destroyed. 30111_ Acquired Power Sword. 30111_ K-01 Serf collects debris. 30112_ Acquired 10 matter. 30112_ Plasma Sword destroyed. 30112_ Penetrated by Slug. 30112_ Flexi-carbon Leg destroyed. 30113_ U-05 Engineer builds a Wall. 30113_ Slug penetrates Wall. 30117_ Flexi-carbon Leg destroyed. 30120_ Acquired 10 matter. [Achievement: 30k Club] Map ----- +----------------------------------------------------+ | ?????????????????????????????????????????????????? | | ?????????????????????????????????????????????????? | | ?????????????????????????????????????????????????? | | ?????????????????????????????????????????????????? | | ?????????????????????????????????????????????????? | | ?????????????????????????????????????????????????? | | ?????????????????????????????????????????????????? | | ?????????????????????????????????????????????????? | | ?????????????????????????????????????????????????? | | ?????????????????????????????????????????????????? | | ?????????????????????????????????????????????????? | | ?????????????????????????????????????????????????? | | ?????????????????????????????????????????????????? | | ?????????????????????????????????????????????????? | | ?????????????????????????????????????????????????? | | ?????????????????????????????????????????????????? | | ???????????????????????????#########+#???????????? | | ??????????????????????????? s???????????? | | ??????????????????????????? ??s?????????? | | ??????????????????????????# ?s??s????????? | | ????????????????????????### ??????????????? | | ????????????????#########/# A ????s??????????? | | ?????????????# g=# #????????????????? | | ?????????????? """"b""" %# #????????????????? | | ?????????????????""" "" =# i #????????????????? | | ?????????????????""" """ @# #????????????????? | | ?????????????????""" " "pp# #?????????g??????? | | ?????????????????""" " i hh |!#????????????????? | | ?????????????????""" " g#h !%=#?????????l??????? | | ?????????????????""" """"=#p = #????????????????? | | ???????????????? =[#hh"%"#???????????H????? | | ??????????????? # " #????????????????? | | ?????????????? # "#????????????????? | | ??????????????? ! + i%#????????????????? | | ???????????????############ "+????????????????? | | ??????????????????????????# #????????????????? | | ??????????????????????????# #????????????????? | | ??????????????????????????# #????????????????? | | ??????????????????????????# %#????????????????? | | ??????????????????????????# #????????????????? | | ??????????????????????????# #????????????????? | | ??????????????????????????# #????????????????? | | ??????????????????????????# #????????????????? | | ??????????????????????????# #????????????????? | | ??????????????????????????# *=#?#######????????? | | ??????????????????????????# = [### # ####?????? | | ??????????????????????????# [%%########## #?????? | | ????????????????????????" # !%*#% [ # ##????? | | ????????????????????????? / =[%+%=% # #????? | | ????????????????????????" # %%# = # ##????? | +----------------------------------------------------+ Best States ------------- Heat Dissipation 128 Energy Generation 25 Energy Capacity 310 Matter Stores 500 Matter Capacity 500 Sight Range 16 Robot Scan Range 14 Terrain Scan Density 10 Jamming Range 12 Cloak Strength 2 EM Shielding 4 Armor Coverage 2250 Propulsion Shielding 33 Utility Shielding 66 Weapon Shielding 66 Melee Speed Boost 50 Evasion (%) 40 Targeting Accuracy 5 Melee Accuracy 8 Target Analysis 5 Recoil Reduction 4 Offensive Hacking 10 Defensive Hacking 10 Relay Coupler Types 3 Relay Coupler Value 61 Item Schematics ----------------- None Robot Schematics ------------------ None Fabricated ------------ Nothing Alien Tech Used ----------------- None Achievements -------------- 30k Club No Signal Total Silence Turtlemind Challenges ------------ None Game ------ Seed HardcellGammaSlayer Manual? 0 Play Time 05:32:24 Cumulative 84.7 hours Start 2021.10.25 @ 15:48:55 End 2021.10.26 @ 15:42:03 Sessions 15 Manual Loads 0 Difficulty Rogue Special Mode None Game No. 62 Rogue 62 Adventurer 0 Explorer 0 Win Type - Total 0 Types 0/0/0/0/0/0/0/0/0 Lore% 32 Gallery% 53 Achievement% 39 Wizard Run 0 Options --------- ASCII 0 Keyboard 1 Movement Vi Keybinds 0 Fullscreen 1 Font 18/SmallcapsGlow Map View 76x50 Tactical HUD 1 Map Filters NONE Filters NONE Steam 0 RUN: 9a54000c-fda5-4155-8f27-6b83ffbee992